bitfinex-derivatives/quotes_SOLF0:USTF0_20260127
["timestamp","ask_amount","ask_price","bid_price","bid_amount"]
[1769499203841,3.50629962,124.47,124.41,2.36672943]
[1769499204040,3.30434696,124.46,124.41,2.36672943]
[1769499205035,10.54404696,124.46,124.41,2.36672943]
[1769499207040,10.51195262,124.48,124.43,2.36672943]
[1769499207231,10.51195262,124.48,124.43,5.91768251]
[1769499213646,10.51195262,124.48,124.44,2.36927999]
[1769499215348,3.27305262,124.47,124.41,3.55095308]
[1769499215650,3.27305262,124.47,124.41,5.92023307]
[1769499217053,10.51265262,124.46,124.41,5.92023307]
[1769499235471,10.93703961,124.48,124.43,5.87888415]
[1769499242278,10.93703961,124.48,124.41,7.2423]
[1769499242279,3.69823961,124.46,124.41,5.87888415]
[1769499243686,3.69823961,124.46,124.43,2.36927999]
[1769499246076,3.69823961,124.48,124.43,5.87888415]
[1769499249182,7.2382,124.49,124.44,3.50960416]
[1769499253078,7.2382,124.49,124.39,75.79698415]
[1769499253274,7.2382,124.49,124.44,2.36927999]
[1769499253579,3.69823961,124.5,124.46,2.36927999]
[1769499259583,10.93553961,124.5,124.46,2.36927999]
[1769499259789,3.69823961,124.49,124.46,2.36927999]
[1769499260387,3.69823961,124.49,124.44,3.50960416]
[1769499260388,10.93603961,124.49,124.44,5.87888415]
[1769499273594,10.93603961,124.49,124.44,5.87848283]
[1769499273994,7.2384,124.48,124.44,5.87848283]
[1769499274192,11.73045197,124.48,124.44,5.87848283]
[1769499279205,4.49205197,124.48,124.44,5.87848283]
[1769499280103,7.2378,124.49,124.44,5.87848283]
[1769499280301,11.72985197,124.49,124.44,5.87848283]
[1769499294616,4.90369484,124.48,124.42,14.50922676]
[1769499295016,4.90369484,124.48,124.43,4.89854809]
[1769499299921,4.90369484,124.47,124.42,2.36887867]
[1769499301628,12.14319484,124.46,124.41,4.89854809]
[1769499301820,4.90369484,124.45,124.39,4.89854809]
[1769499302626,12.14379484,124.45,124.39,4.89854809]
[1769499302826,4.90369484,124.44,124.39,4.89854809]
[1769499305927,4.90369484,124.44,124.4,2.36887867]
[1769499306728,4.90369484,124.46,124.4,7.26742676]
[1769499307932,4.90369484,124.45,124.4,7.26742676]
[1769499309634,4.90369484,124.47,124.41,4.89854809]
[1769499311027,4.90369484,124.46,124.41,4.89854809]
[1769499312230,4.90369484,124.45,124.41,4.89854809]
[1769499317529,7.2396,124.46,124.41,4.89854809]
[1769499317740,4.90369484,124.47,124.42,2.36887867]
[1769499318036,4.90369484,124.47,124.42,7.26742676]
[1769499318636,4.90369484,124.47,124.44,2.36887867]
[1769499323846,4.90369484,124.47,124.42,2.36887867]
[1769499324144,5.06451486,124.46,124.41,5.02088464]
[1769499324945,12.30421486,124.46,124.41,5.02088464]
[1769499333352,12.29004822,124.48,124.42,7.76597388]
[1769499333551,12.29004822,124.48,124.42,7.7665711]
[1769499342259,12.29004822,124.48,124.43,2.36947589]
[1769499346857,5.05114822,124.48,124.43,7.7665711]
[1769499347063,5.05114822,124.48,124.44,2.36947589]
[1769499359882,5.05114822,124.48,124.43,5.39709521]
[1769499395603,5.05114822,124.48,124.43,7.76593786]
[1769499400706,5.05114822,124.48,124.43,15.00703786]
[1769499400902,7.2374,124.5,124.43,15.00703786]
[1769499401303,7.2374,124.5,124.44,5.68878852]
[1769499403004,12.8065361,124.5,124.44,5.68878852]
[1769499403209,6.02565938,124.49,124.44,5.68878852]
[1769499403600,12.8065361,124.5,124.44,12.92948852]
[1769499406112,5.5691361,124.49,124.44,12.92948852]
[1769499410413,5.5691361,124.49,124.44,5.68878852]
[1769499421826,7.2374,124.5,124.4,112.6663]
[1769499421827,6.14080306,124.46,124.4,5.53546657]
[1769499422023,6.14080306,124.44,124.38,5.53546657]
[1769499423029,6.14080306,124.44,124.39,5.53546657]
[1769499423230,6.14080306,124.44,124.39,7.90430922]
[1769499423721,6.14080306,124.46,124.4,5.53546657]
[1769499423927,6.14080306,124.48,124.42,5.53546657]
[1769499424123,6.14080306,124.51,124.45,2.36884265]
[1769499424636,6.14080306,124.51,124.45,7.90430922]
[1769499424833,6.14080306,124.51,124.46,5.53546657]
[1769499425536,6.14080306,124.51,124.47,2.36884265]
[1769499425732,214.49248356,124.54,124.48,5.53546657]
[1769499425733,220.63328662,124.54,124.48,5.53546657]
[1769499426434,6.14080306,124.53,124.48,5.53546657]
[1769499427433,6.14080306,124.53,124.48,7.90430922]
[1769499428235,6.14080306,124.53,124.48,5.53546657]
[1769499428534,6.14080306,124.53,124.48,7.90430922]
[1769499430129,6.14080306,124.53,124.48,5.53546657]
[1769499435841,6.14080306,124.53,124.48,7.90430922]
[1769499436644,6.14080306,124.55,124.49,5.53546657]
[1769499443753,8.50964571,124.55,124.49,5.53546657]
[1769499444049,6.01385044,124.54,124.49,5.53546657]
[1769499446048,2.36884265,124.54,124.47,8.34131471]
[1769499446255,2.36884265,124.54,124.48,40.63734546]
[1769499448356,9.60374265,124.54,124.48,40.63734546]
[1769499449049,7.2355,124.53,124.48,40.63734546]
[1769499449758,2.36884265,124.54,124.48,40.63734546]
[1769499449957,9.60354265,124.55,124.48,40.63734546]
[1769499451652,9.60354265,124.55,124.48,50.24438811]
[1769499453852,7.2347,124.55,124.5,2.36884265]
[1769499456657,7.2347,124.55,124.49,40.63734546]
[1769499456658,7.2347,124.55,124.49,43.00618811]
[1769499457654,7.2347,124.55,124.49,43.00440983]
[1769499466167,9.60176437,124.55,124.49,43.00440983]
[1769499468468,2.36706437,124.57,124.49,50.24210983]
[1769499468675,8.39239242,124.57,124.49,50.24210983]
[1769499468971,6.02532805,124.57,124.51,43.00440983]
[1769499469877,7.2338,124.56,124.51,43.00440983]
[1769499473769,213.95387006,124.58,124.51,43.00440983]
[1769499475074,7.2332,124.57,124.51,43.00440983]
[1769499477081,7.2332,124.57,124.53,43.00440983]
[1769499480176,7.2338,124.56,124.52,2.36706437]
[1769499480684,7.2343,124.55,124.51,40.63734546]
[1769499480976,114.88466437,124.57,124.49,43.00440983]
[1769499481183,114.90316437,124.55,124.49,27.40284546]
[1769499482984,7.2359,124.53,124.49,27.40284546]
[1769499483185,112.5261,124.56,124.49,27.40284546]
[1769499483481,5.99792833,124.55,124.49,27.40284546]
[1769499484885,7.2349,124.54,124.49,27.40284546]
[1769499486587,7.2357,124.53,124.49,27.40284546]
[1769499492392,7.2361,124.52,124.49,15.03364546]
[1769499492588,7.2361,124.52,124.46,2.36706437]
[1769499494493,7.2361,124.52,124.44,7.2402]
[1769499494494,7.2361,124.52,124.47,20.31867273]
[1769499494797,9.60316437,124.52,124.47,20.31867273]
[1769499502303,9.60386437,124.51,124.47,20.31867273]
[1769499505008,7.2368,124.51,124.47,20.31867273]
[1769499506710,2.36706437,124.53,124.47,20.31867273]
[1769499507717,2.36706437,124.55,124.47,22.6857371]
[1769499508306,8.3538324,124.55,124.47,22.6857371]
[1769499508909,7.2354,124.54,124.47,22.6857371]
[1769499509105,7.2354,124.54,124.48,20.31867273]
[1769499509709,7.2354,124.54,124.48,22.6857371]
[1769499514916,7.234,124.56,124.51,20.31867273]
[1769499516208,221.18687006,124.58,124.53,20.31867273]
[1769499519324,7.233,124.58,124.53,20.31867273]
[1769499528129,7.233,124.58,124.53,22.68430243]
[1769499529230,7.233,124.58,124.53,20.31867273]
[1769499539532,112.4794,124.62,124.53,20.31867273]
[1769499539533,7.2318,124.6,124.53,20.31867273]
[1769499539739,9.5974297,124.6,124.53,20.31867273]
[1769499540638,7.232,124.59,124.53,20.31867273]
[1769499541643,7.232,124.59,124.53,22.68430243]
[1769499546143,7.232,124.59,124.53,20.31867273]
[1769499547950,9.5976297,124.59,124.53,20.31867273]
[1769499553754,7.232,124.59,124.53,20.31867273]
[1769499559556,7.2313,124.61,124.54,20.31867273]
[1769499559754,2.3656297,124.6,124.54,20.31867273]
[1769499560355,9.5970297,124.6,124.54,20.31867273]
[1769499561252,7.2314,124.6,124.54,20.31867273]
[1769499561555,2.3656297,124.61,124.54,22.68430243]
[1769499561760,9.5964297,124.62,124.56,20.31867273]
[1769499561951,2.3656297,124.61,124.56,20.31867273]
[1769499564764,2.3656297,124.6,124.56,20.31867273]
[1769499565764,2.3656297,124.59,124.56,20.31867273]
[1769499566070,2.3656297,124.58,124.53,7.2349]
[1769499567162,9.96086664,124.61,124.54,7.2346]
[1769499567367,2.3656297,124.59,124.54,7.2346]
[1769499567964,2.3656297,124.59,124.55,14.77271583]
[1769499568771,2.3656297,124.6,124.55,14.77271583]
[1769499573874,2.3656297,124.59,124.55,14.77271583]
[1769499579580,2.3652438,124.59,124.55,14.77271583]
[1769499581280,2.3652438,124.58,124.55,14.77271583]
[1769499584583,2.3652438,124.59,124.55,14.77271583]
[1769499587689,2.3652438,124.58,124.53,14.77271583]
[1769499587885,2.3652438,124.57,124.53,14.77271583]
[1769499588686,2.3652438,124.56,124.53,14.77271583]
[1769499593993,2.3652438,124.57,124.53,14.77271583]
[1769499602001,2.3652438,124.56,124.51,23.90303816]
[1769499602499,2.3652438,124.56,124.52,16.66653816]
[1769499603096,2.3652438,124.55,124.52,16.66653816]
[1769499604797,2.3652438,124.56,124.52,16.66653816]
[1769499605002,2.3652438,124.59,124.53,16.66653816]
[1769499605295,23.73684069,124.61,124.53,16.66653816]
[1769499605296,2.3652438,124.6,124.53,16.66653816]
[1769499605501,2.3652438,124.61,124.53,19.03178196]
[1769499606102,18.87068449,124.62,124.55,16.66653816]
[1769499606905,18.87068449,124.62,124.56,16.66653816]
[1769499607201,16.50544069,124.62,124.56,16.66653816]
[1769499607600,18.87068449,124.62,124.56,16.66653816]
[1769499608902,26.10098449,124.62,124.56,16.66653816]
[1769499614010,23.73634069,124.61,124.56,16.66653816]
[1769499614611,16.50544069,124.63,124.58,16.66653816]
[1769499615410,18.87068449,124.63,124.58,16.66653816]
[1769499616009,26.10048449,124.63,124.58,16.66653816]
[1769499616512,9.5955438,124.62,124.58,16.66653816]
[1769499621402,7.2303,124.62,124.58,16.66653816]
[1769499622409,25.04221678,124.62,124.58,16.66653816]
[1769499623821,27.40746058,124.62,124.58,16.66653816]
[1769499624421,25.04221678,124.62,124.58,16.66653816]
[1769499625923,7.2309,124.61,124.56,17.71355784]
[1769499635823,16.70675256,124.66,124.59,17.71355784]
[1769499636023,16.70675256,124.68,124.6,2.3652438]
[1769499636327,19.07199636,124.68,124.61,17.71355784]
[1769499636928,7.2279,124.66,124.61,17.71355784]
[1769499639030,23.93465256,124.66,124.61,17.71355784]
[1769499639228,16.70675256,124.65,124.61,17.71355784]
[1769499639430,16.70675256,124.65,124.6,17.71355784]
[1769499639734,7.2279,124.66,124.6,17.71355784]
[1769499643836,16.70675256,124.64,124.58,17.71355784]
[1769499645340,23.93585256,124.64,124.58,17.71355784]
[1769499645740,23.93585256,124.64,124.58,20.07668824]
[1769499647341,26.29898296,124.64,124.58,17.71355784]
[1769499647542,16.70675256,124.64,124.58,17.71355784]
[1769499647840,16.70675256,124.64,124.58,20.07668824]
[1769499648435,23.93585256,124.64,124.58,20.07668824]
[1769499649544,23.93645256,124.63,124.58,17.71355784]
[1769499650042,26.29958296,124.63,124.58,17.71355784]
[1769499650433,19.06988296,124.62,124.56,17.71355784]
[1769499651344,2.3631304,124.61,124.56,17.71355784]
[1769499651641,19.06988296,124.62,124.56,17.71355784]
[1769499651941,7.231,124.61,124.56,17.71355784]
[1769499652243,16.70675256,124.62,124.56,20.07668824]
[1769499652642,16.70675256,124.62,124.57,20.07668824]
[1769499655847,23.93705256,124.62,124.57,17.71355784]
[1769499659144,7.2309,124.61,124.57,17.71355784]
[1769499659351,26.13985322,124.61,124.57,17.71355784]
[1769499660455,26.13985322,124.61,124.55,18.95858288]
[1769499661749,26.13985322,124.61,124.55,21.32171328]
[1769499670156,26.13985322,124.61,124.55,18.95858288]
[1769499671060,7.2315,124.6,124.55,18.95858288]
[1769499671358,18.90895322,124.6,124.55,18.95858288]
[1769499672361,18.90895322,124.63,124.55,21.32171328]
[1769499672559,18.90895322,124.63,124.58,18.95858288]
[1769499674056,7.2302,124.62,124.58,18.95858288]
[1769499681263,7.2309,124.61,124.58,18.95858288]
[1769499715196,18.77839211,124.6,124.54,19.50757812]
[1769499715396,112.4655,124.63,124.56,19.50757812]
[1769499715397,18.77839211,124.62,124.56,19.50757812]
[1769499717104,26.00909211,124.62,124.56,19.50757812]
[1769499718106,26.00909211,124.62,124.56,21.87225337]
[1769499720208,2.36467525,124.63,124.56,21.87225337]
[1769499720407,21.14306736,124.63,124.56,21.87225337]
[1769499722019,7.2303,124.62,124.56,21.87225337]
[1769499722910,7.2303,124.62,124.58,19.50757812]
[1769499723111,4.56585454,124.62,124.58,19.50757812]
[1769499724413,7.2295,124.64,124.58,21.87225337]
[1769499724610,7.2295,124.64,124.6,19.50757812]
[1769499724810,18.77839211,124.65,124.6,19.50757812]
[1769499725510,18.77839211,124.67,124.6,21.87225337]
[1769499725714,18.77839211,124.67,124.62,19.50757812]
[1769499726912,26.00599211,124.67,124.62,19.50757812]
[1769499730720,28.37066736,124.67,124.62,19.50757812]
[1769499733824,26.00599211,124.67,124.62,19.50757812]
[1769499738827,28.37066736,124.67,124.62,19.50757812]
[1769499765538,28.36863579,124.67,124.62,19.50757812]
[1769499781260,23.01241323,124.65,124.59,19.27457459]
[1769499781559,2.36264368,124.64,124.59,19.27457459]
[1769499788066,30.24091323,124.65,124.59,19.27457459]
[1769499789476,27.87756955,124.67,124.61,21.63721827]
[1769499791066,27.87756955,124.67,124.62,19.27457459]
[1769499796472,20.64976955,124.67,124.62,21.63721827]
[1769499797774,20.64976955,124.67,124.62,19.27457459]
[1769499803987,27.87726955,124.67,124.62,19.27457459]
[1769499804282,30.23991323,124.67,124.62,19.27457459]
[1769499810993,19.47811344,124.66,124.6,28.9897233]
[1769499811185,19.47811344,124.66,124.61,19.39567962]
[1769499819695,19.47811344,124.65,124.59,19.39567962]
[1769499819891,21.84075712,124.62,124.55,19.39567962]
[1769499820090,2.36264368,124.6,124.55,19.39567962]
[1769499820296,21.84075712,124.6,124.55,19.39567962]
[1769499820585,26.70981344,124.6,124.55,19.39567962]
[1769499820897,21.84075712,124.62,124.55,21.7583233]
[1769499821493,19.47811344,124.64,124.57,19.39567962]
[1769499821796,19.47811344,124.64,124.57,21.7583233]
[1769499821797,21.84075712,124.64,124.57,21.7583233]
[1769499822600,19.47811344,124.63,124.57,21.7583233]
[1769499823292,21.84075712,124.63,124.57,19.39567962]
[1769499826907,2.36264368,124.62,124.57,19.39567962]
[1769499827603,2.36431612,124.62,124.57,19.39567962]
[1769499837115,2.36431612,124.6,124.57,19.39567962]
[1769499838314,2.36431612,124.61,124.57,19.39567962]
[1769499838513,2.36431612,124.6,124.57,19.39567962]
[1769499839410,2.36431612,124.59,124.57,19.39567962]
[1769499840616,2.36431612,124.59,124.53,7.2349]
[1769499842516,2.36431612,124.58,124.53,7.2349]
[1769499842713,2.36431612,124.58,124.54,20.06987373]
[1769499843015,2.36431612,124.57,124.54,20.06987373]
[1769499849617,2.36431612,124.56,124.54,20.06987373]
[1769499852224,2.36431612,124.57,124.54,20.06987373]
[1769499853820,2.36431612,124.58,124.54,20.06987373]
[1769499855933,23.20235841,124.58,124.54,20.06987373]
[1769499856730,2.36431612,124.57,124.54,20.06987373]
[1769499857832,2.36431612,124.57,124.51,20.06987373]
[1769499866540,28.07064229,124.58,124.52,21.67215569]
[1769499866746,30.43495841,124.58,124.52,21.67215569]
[1769499866941,7.2326,124.58,124.52,24.03647181]
[1769499868048,7.2326,124.58,124.53,21.67215569]
[1769499869947,9.59691612,124.58,124.53,21.67215569]
[1769499870136,9.59751612,124.57,124.53,21.67215569]
[1769499871139,2.36431612,124.56,124.53,21.67215569]
[1769499874548,2.36431612,124.56,124.46,112.6086]
[1769499874549,21.62183189,124.53,124.41,112.659]
[1769499874855,2.36431612,124.51,124.43,2.36431612]
[1769499875150,2.36431612,124.51,124.44,7.2405]
[1769499876453,2.36431612,124.51,124.45,21.67215569]
[1769499878654,2.36431612,124.5,124.45,21.67215569]
[1769499881160,2.36431612,124.51,124.45,21.67215569]
[1769499883860,2.36431612,124.5,124.45,21.67215569]
[1769499886860,2.36431612,124.5,124.45,28.91215569]
[1769499887259,2.36431612,124.5,124.46,21.67215569]
[1769499889565,2.36925796,124.5,124.46,21.67215569]
[1769499899579,2.36925796,124.51,124.46,21.67215569]
[1769499900178,2.36925796,124.5,124.46,21.67215569]
[1769499900776,2.36925796,124.49,124.44,21.28807109]
[1769499900979,9.60785796,124.48,124.44,21.28807109]
[1769499901281,2.36925796,124.49,124.44,21.28807109]
[1769499901485,2.36925796,124.5,124.44,21.28807109]
[1769499902381,2.36925796,124.51,124.44,23.65732905]
[1769499903082,9.60635796,124.51,124.44,23.65732905]
[1769499905487,2.36925796,124.53,124.47,21.28807109]
[1769499906887,7.236,124.52,124.47,21.28807109]
[1769499910588,7.2368,124.51,124.47,21.28807109]
[1769499927699,7.2372,124.5,124.47,21.28807109]
[1769499929600,7.2372,124.5,124.45,18.64394028]
[1769499929804,9.60705796,124.49,124.45,18.64394028]
[1769499931202,8.36263606,124.48,124.4,9.61185796]
[1769499931700,7.239,124.47,124.4,9.61185796]
[1769499932298,7.239,124.47,124.41,2.36925796]
[1769499933004,2.36925796,124.48,124.42,4.81930669]
[1769499933204,5.99022357,124.48,124.43,4.77769391]
[1769499933904,13.22862357,124.48,124.43,4.77769391]
[1769499934104,7.2384,124.48,124.43,4.77769391]
[1769499935703,7.2384,124.48,124.41,2.36925796]
[1769499935903,18.63117801,124.47,124.41,7.06515471]
[1769499936104,18.63117801,124.47,124.42,4.69589675]
[1769499936407,18.63117801,124.47,124.42,7.06515471]
[1769499936702,18.63117801,124.47,124.43,4.4870237]
[1769499941810,9.60765796,124.48,124.43,4.4870237]
[1769499942011,28.23883597,124.48,124.43,4.4870237]
[1769499948611,28.23943597,124.47,124.41,2.16001837]
[1769499950412,25.87017801,124.47,124.41,2.16001837]
[1769499952512,18.63117801,124.47,124.41,9.40231837]
[1769499952818,28.23975919,124.49,124.43,3.82360829]
[1769499953015,28.23975919,124.49,124.43,1.45332711]
[1769499953216,18.63117801,124.48,124.43,1.45332711]
[1769499954219,21.00145919,124.48,124.43,1.45332711]
[1769499955120,28.23985919,124.48,124.43,1.45332711]
[1769499955319,20.36142621,124.47,124.41,0.7841695]
[1769499957126,20.36142621,124.47,124.42,0.62026597]
[1769499957423,17.99114503,124.47,124.42,0.62026597]
[1769499959824,17.99114503,124.47,124.42,7.86186597]
[1769499963125,20.36142621,124.47,124.42,7.86186597]
[1769499963830,17.99114503,124.47,124.42,7.86186597]
[1769499966928,20.36142621,124.47,124.42,7.86186597]
[1769499967531,20.36142621,124.47,124.39,112.6763]
[1769499967825,20.36142621,124.47,124.39,115.04658118]
[1769499968030,2.37028118,124.46,124.39,115.04658118]
[1769499968330,20.36142621,124.46,124.39,115.04658118]
[1769499969023,20.36142621,124.46,124.41,7.2423]
[1769499974835,20.36142621,124.45,124.41,7.2423]
[1769499975231,20.36142621,124.45,124.4,7.2429]
[1769499976130,17.99114503,124.45,124.4,7.2429]
[1769499976527,20.36142621,124.45,124.38,264.99825168]
[1769499976727,17.99114503,124.43,124.38,264.99825168]
[1769499977533,17.99114503,124.43,124.39,7.2435]
[1769499977734,17.99114503,124.43,124.38,260.12463286]
[1769499978127,17.99114503,124.45,124.39,2.37028118]
[1769499978338,17.99114503,124.45,124.4,9.61328118]
[1769499978738,17.99114503,124.48,124.42,2.37028118]
[1769499979037,17.99114503,124.48,124.41,9.61258118]
[1769499979234,20.36142621,124.48,124.41,9.61258118]
[1769499979938,17.99114503,124.47,124.41,9.61258118]
[1769499984143,17.99114503,124.47,124.42,7.2418]
[1769499985442,17.99114503,124.47,124.42,9.61208118]
[1769499986342,17.99114503,124.47,124.42,7.2418]
[1769499987035,2.37028118,124.44,124.38,260.12463286]
[1769499987236,17.99114503,124.43,124.38,257.75435168]
[1769499987842,17.99114503,124.43,124.39,7.2431]
[1769499987843,20.36142621,124.43,124.39,7.2431]
[1769499988445,17.99114503,124.43,124.39,7.2431]
[1769499988933,2.37028118,124.47,124.4,2.37028118]
[1769499989139,2.37028118,124.48,124.4,16.40515617]
[1769499989443,8.35978024,124.48,124.4,16.40515617]
[1769499989639,5.98949906,124.47,124.4,16.40515617]
[1769499989843,2.37028118,124.48,124.4,16.40515617]
[1769499990042,2.37028118,124.48,124.41,7.2423]
[1769499990544,8.35868422,124.48,124.41,21.05960902]
[1769499990937,14.93577123,124.47,124.41,21.05960902]
[1769499991139,17.30605241,124.45,124.39,21.06050902]
[1769499991445,17.30605241,124.44,124.39,21.06050902]
[1769499991842,14.93577123,124.44,124.39,21.06050902]
[1769499992043,17.30605241,124.44,124.39,7.2432]
[1769499992243,17.30605241,124.44,124.37,20.95469664]
[1769499992639,17.30605241,124.44,124.37,13.71039664]
[1769499992835,17.30605241,124.44,124.37,16.08067782]
[1769499993945,17.30605241,124.44,124.38,7.2441]
[1769499996647,17.30605241,124.44,124.38,21.58618604]
[1769499997140,14.93577123,124.44,124.38,21.58618604]
[1769500000448,14.93577123,124.44,124.38,23.95646722]
[1769500000751,14.93577123,124.42,124.37,15.00655272]
[1769500001138,14.93577123,124.42,124.37,24.6214339]
[1769500001540,14.93577123,124.46,124.38,17.3768339]
[1769500001737,14.93577123,124.46,124.41,17.3768339]
[1769500001942,14.93577123,124.46,124.42,2.37028118]
[1769500002142,14.93577123,124.48,124.42,17.3768339]
[1769500002543,14.93577123,124.48,124.43,17.3768339]
[1769500002743,14.93577123,124.48,124.44,2.37028118]
[1769500003750,14.93577123,124.48,124.43,17.3768339]
[1769500004044,14.93577123,124.48,124.44,2.37028118]
[1769500005744,14.93577123,124.51,124.45,2.37028118]
[1769500008045,14.93577123,124.51,124.45,9.61018118]
[1769500008344,14.93577123,124.51,124.47,2.37028118]
[1769500008544,7.52127457,124.57,124.5,2.37028118]
[1769500008745,2.37028118,124.58,124.51,2.37028118]
[1769500009549,8.35646158,124.6,124.53,2.37028118]
[1769500010444,8.35646158,124.6,124.53,9.60548118]
[1769500010646,14.93577123,124.6,124.54,2.37028118]
[1769500011350,17.30605241,124.6,124.53,9.60548118]
[1769500011546,14.93577123,124.58,124.51,22.24285272]
[1769500011747,17.30195771,124.57,124.51,22.24285272]
[1769500012244,14.93577123,124.57,124.51,22.24285272]
[1769500013050,17.30195771,124.57,124.49,119.8208]
[1769500013352,14.93577123,124.55,124.49,137.1935392]
[1769500015255,14.93577123,124.55,124.49,24.6102392]
[1769500016957,14.93577123,124.55,124.5,7.237]
[1769500021056,14.93577123,124.55,124.49,15.00655272]
[1769500021269,14.93577123,124.55,124.48,9.60438648]
[1769500021566,17.30195771,124.55,124.48,7.2382]
[1769500022464,17.78896019,124.53,124.48,7.2382]
[1769500023362,20.15514667,124.53,124.48,7.2382]
[1769500026870,20.15514667,124.53,124.47,16.70226095]
[1769500032373,17.78896019,124.53,124.48,2.36618648]
[1769500033567,17.78896019,124.53,124.45,19.06844743]
[1769500033773,17.78896019,124.51,124.45,19.06844743]
[1769500034567,17.78896019,124.51,124.45,26.30844743]
[1769500037475,17.78896019,124.51,124.46,2.36618648]
[1769500038674,17.78896019,124.51,124.45,26.30844743]
[1769500043678,17.78896019,124.51,124.45,2.36618648]
[1769500044475,20.26029183,124.5,124.45,2.36618648]
[1769500048884,27.49759183,124.5,124.45,2.36618648]
[1769500049081,20.26029183,124.49,124.45,2.36618648]
[1769500050490,27.49829183,124.49,124.45,2.36618648]
[1769500050677,20.26029183,124.48,124.43,22.47949843]
[1769500050872,20.26029183,124.48,124.4,20.1552439]
[1769500051072,20.26029183,124.48,124.42,2.36618648]
[1769500052784,20.26029183,124.51,124.47,2.36618648]
[1769500053884,27.49699183,124.51,124.47,2.36618648]
[1769500054179,20.26029183,124.5,124.47,2.36618648]
[1769500055985,20.26029183,124.5,124.46,2.36618648]
[1769500066475,27.49749183,124.5,124.45,2.36618648]
[1769500066676,20.26029183,124.49,124.45,2.36618648]
[1769500068583,20.26029183,124.48,124.44,22.52143038]
[1769500068790,20.26029183,124.48,124.44,2.36618648]
[1769500071277,20.26029183,124.48,124.43,9.60738648]
[1769500071590,20.26029183,124.48,124.43,9.6104889]
[1769500072892,20.26029183,124.48,124.43,2.3692889]
[1769500073194,20.26029183,124.48,124.42,2.3692889]
[1769500073592,6.01254187,124.47,124.41,2.3692889]
[1769500073789,20.26029183,124.46,124.41,2.3692889]
[1769500077299,20.26029183,124.46,124.42,2.3692889]
[1769500078693,20.26029183,124.46,124.41,2.3692889]
[1769500083394,20.26029183,124.46,124.4,29.7674328]
[1769500083701,20.26029183,124.46,124.41,7.2424]
[1769500083902,20.26029183,124.46,124.41,9.6116889]
[1769500085886,20.26029183,124.46,124.41,7.2424]
[1769500086296,20.26029183,124.46,124.37,24.0349606]
[1769500086496,24.31182427,124.44,124.37,26.4042495]
[1769500086892,21.94253537,124.44,124.37,33.6488495]
[1769500087097,24.31182427,124.44,124.37,24.0349606]
[1769500087703,24.31182427,124.44,124.37,31.2794606]
[1769500088400,24.31182427,124.44,124.37,33.6487495]
[1769500091404,21.94253537,124.42,124.37,7.2445]
[1769500092402,21.94253537,124.42,124.36,26.4042495]
[1769500092603,24.31182427,124.42,124.36,24.0349606]
[1769500093107,24.31182427,124.42,124.36,31.2801606]
[1769500093906,2.3692889,124.41,124.36,31.2801606]
[1769500096008,24.31182427,124.41,124.36,31.2801606]
[1769500098212,21.94253537,124.41,124.36,31.2801606]
[1769500098804,24.31182427,124.41,124.36,31.2801606]
[1769500103718,24.31182427,124.41,124.36,24.0349606]
[1769500110023,27.43270817,124.4,124.34,24.32183125]
[1769500110925,27.43270817,124.4,124.34,31.56823125]
[1769500112020,25.06341927,124.4,124.34,33.93752015]
[1769500112218,25.06341927,124.4,124.34,26.69112015]
[1769500112422,25.06341927,124.4,124.35,7.2459]
[1769500113427,25.06341927,124.4,124.36,7.2453]
[1769500114027,25.06341927,124.42,124.37,26.69112015]
[1769500114421,25.06341927,124.44,124.39,26.69112015]
[1769500114615,25.06341927,124.46,124.42,2.3692889]
[1769500114821,25.06341927,124.48,124.43,2.3692889]
[1769500115126,27.43270817,124.45,124.38,26.69112015]
[1769500116120,27.43270817,124.45,124.38,33.93512015]
[1769500116823,27.43270817,124.45,124.38,31.56583125]
[1769500117827,2.3692889,124.43,124.38,31.56583125]
[1769500118024,27.43270817,124.43,124.38,31.56583125]
[1769500123831,25.06341927,124.43,124.38,31.56583125]
[1769500128930,27.43270817,124.47,124.4,24.32183125]
[1769500129235,31.13964491,124.46,124.4,26.69112015]
[1769500129430,25.06341927,124.46,124.4,26.69112015]
[1769500131333,25.06341927,124.46,124.4,24.32183125]
[1769500131634,27.43434916,124.46,124.4,24.32183125]
[1769500134839,27.43434916,124.46,124.39,7.2435]
[1769500135741,27.43434916,124.46,124.39,32.0794207]
[1769500136241,27.43434916,124.46,124.4,7.2429]
[1769500143651,25.06341927,124.46,124.41,32.0779207]
[1769500143949,26.95294613,124.48,124.42,27.20685059]
[1769500144253,26.95294613,124.48,124.43,2.37092989]
[1769500146255,26.95294613,124.48,124.44,27.20685059]
[1769500146461,26.95294613,124.5,124.44,27.20685059]
[1769500146754,26.95294613,124.5,124.45,2.37092989]
[1769500146951,26.95294613,124.5,124.44,27.20685059]
[1769500147554,29.32387602,124.5,124.44,24.8359207]
[1769500148753,26.95294613,124.5,124.44,7.2406]
[1769500149060,29.32387602,124.5,124.44,7.2406]
[1769500149650,26.95294613,124.48,124.42,32.0774207]
[1769500155355,26.95294613,124.48,124.42,34.44835059]